bitfinex-derivatives/quotes_BTCF0:USTF0_20250114
["timestamp","ask_amount","ask_price","bid_price","bid_amount"]
[1736874776507,0.11234138,96146.0,96145.0,0.052033]
[1736874776715,0.11234138,96146.0,96145.0,0.053033]
[1736874779904,0.052033,96146.0,96145.0,0.053033]
[1736874783614,0.052033,96146.0,96145.0,0.001]
[1736874784120,0.052029,96153.0,96145.0,0.001]
[1736874784420,0.052032,96146.0,96145.0,0.001]
[1736874785910,0.052032,96146.0,96138.0,0.72216]
[1736874785911,0.11590882,96152.0,96140.0,0.052035]
[1736874786111,0.052035,96141.0,96140.0,0.052035]
[1736874787220,0.052035,96141.0,96140.0,0.053035]
[1736874789021,0.052035,96141.0,96140.0,0.052035]
[1736874791019,0.052041,96130.0,96129.0,0.18609519]
[1736874791219,0.055,96140.0,96129.0,0.18609519]
[1736874791415,0.05204,96132.0,96131.0,0.3608]
[1736874792318,0.052044,96124.0,96123.0,0.3608]
[1736874793417,0.052045,96123.0,96122.0,0.18609519]
[1736874793820,0.001,96123.0,96120.0,0.00156041]
[1736874794024,0.052051,96112.0,96106.0,0.18609519]
[1736874794322,0.052051,96112.0,96106.0,0.23814919]
[1736874795020,0.052051,96112.0,96096.0,0.1113]
[1736874795021,0.11238113,96112.0,96096.0,0.0572]
[1736874795216,0.11238113,96112.0,96099.0,0.00758466]
[1736874795418,0.11238113,96112.0,96100.0,0.11480039]
[1736874795628,0.11238113,96112.0,96110.0,0.052052]
[1736874796016,0.18886624,96112.0,96110.0,0.052052]
[1736874797027,0.11238113,96112.0,96110.0,0.052052]
[1736874797522,0.11238113,96112.0,96111.0,0.3618]
[1736874798222,0.052051,96112.0,96111.0,0.3618]
[1736874799028,0.11238113,96112.0,96111.0,0.3618]
[1736874799524,0.42113013,96112.0,96102.0,0.3608]
[1736874799842,0.052061,96094.0,96093.0,0.3608]
[1736874800232,0.053061,96094.0,96086.0,0.00156098]
[1736874800422,0.052064,96087.0,96086.0,0.00156098]
[1736874800928,0.412864,96087.0,96086.0,0.00156098]
[1736874801124,0.47319413,96087.0,96086.0,0.00156098]
[1736874801624,0.052069,96078.0,96077.0,0.3608]
[1736874802626,0.052069,96078.0,96062.0,1.50056]
[1736874802627,0.052074,96070.0,96069.0,0.3608]
[1736874804228,0.052074,96070.0,96069.0,0.3678]
[1736874804730,0.052074,96070.0,96069.0,0.3768]
[1736874809031,0.052074,96070.0,96069.0,0.428874]
[1736874810127,0.0579,96077.0,96076.0,0.05207]
[1736874810725,0.11480039,96090.0,96070.0,0.052074]
[1736874811036,0.052064,96089.0,96088.0,0.052063]
[1736874811241,0.11636187,96098.0,96085.0,0.3608]
[1736874811430,0.00156148,96098.0,96097.0,0.412859]
[1736874812029,0.052053,96109.0,96108.0,0.052053]
[1736874813842,0.052053,96109.0,96108.0,0.053053]
[1736874814434,0.055053,96109.0,96108.0,0.053053]
[1736874815241,0.052053,96109.0,96108.0,0.054053]
[1736874815742,0.052053,96109.0,96108.0,0.002]
[1736874817141,0.052053,96109.0,96108.0,0.001]
[1736874817443,0.052054,96106.0,96105.0,0.3608]
[1736874817842,0.003,96109.0,96105.0,0.3608]
[1736874818141,0.052054,96106.0,96105.0,0.3608]
[1736874818439,0.052054,96106.0,96105.0,0.412855]
[1736874819740,0.002,96109.0,96108.0,0.052053]
[1736874819939,0.054052,96109.0,96108.0,0.052053]
[1736874820141,0.052052,96109.0,96108.0,0.052053]
[1736874821037,0.053052,96109.0,96108.0,0.052053]
[1736874821243,0.053052,96109.0,96108.0,0.053053]
[1736874821443,0.052052,96109.0,96108.0,0.054053]
[1736874822538,0.23295851,96130.0,96109.0,0.052052]
[1736874822738,0.23295851,96130.0,96123.0,0.412845]
[1736874822938,0.00156098,96132.0,96129.0,0.052042]
[1736874823145,0.00156098,96132.0,96131.0,0.052041]
[1736874823744,0.05360098,96132.0,96131.0,0.052041]
[1736874824543,0.05660098,96132.0,96131.0,0.052041]
[1736874825343,0.00756098,96132.0,96131.0,0.413841]
[1736874826144,0.0535,96146.0,96131.0,0.413841]
[1736874826354,0.105533,96146.0,96145.0,0.3608]
[1736874826747,0.0554,96151.0,96145.0,0.3608]
[1736874826936,0.052026,96157.0,96150.0,0.05203]
[1736874827134,0.052026,96157.0,96154.0,0.052028]
[1736874827341,0.052027,96156.0,96154.0,0.052028]
[1736874827647,0.052028,96155.0,96149.0,0.05203]
[1736874827849,0.052028,96155.0,96148.0,0.3608]
[1736874828041,0.052028,96155.0,96151.0,0.05203]
[1736874828652,0.052028,96155.0,96154.0,0.001]
[1736874830254,0.003,96156.0,96154.0,0.001]
[1736874830455,0.052024,96161.0,96155.0,0.052028]
[1736874830655,0.052024,96161.0,96157.0,0.3608]
[1736874830849,0.052025,96159.0,96157.0,0.3608]
[1736874832348,0.052025,96159.0,96157.0,0.3618]
[1736874833148,0.053025,96159.0,96157.0,0.3618]
[1736874833656,0.001,96159.0,96158.0,0.412826]
[1736874833951,0.3608,96187.0,96158.0,0.412826]
[1736874833952,0.052007,96194.0,96179.0,0.052014]
[1736874834152,0.052008,96193.0,96186.0,0.3608]
[1736874834357,0.0549,96198.0,96188.0,0.05201]
[1736874834657,0.0549,96198.0,96194.0,0.3608]
[1736874836159,0.0549,96198.0,96195.0,0.052005]
[1736874836458,0.0549,96198.0,96194.0,0.3608]
[1736874837657,0.0549,96198.0,96194.0,0.3618]
[1736874839158,0.0549,96198.0,96196.0,0.052005]
[1736874840456,0.0549,96198.0,96196.0,0.053005]
[1736874844860,0.1,96200.0,96199.0,0.052004]
[1736874847370,0.1,96200.0,96199.0,0.053004]
[1736874848361,0.1,96200.0,96199.0,0.001]
[1736874848568,0.1,96200.0,96194.0,0.3608]
[1736874848769,0.1,96200.0,96198.0,0.052004]
[1736874851362,0.0015599,96218.0,96213.0,0.051996]
[1736874851568,0.3608,96214.0,96205.0,0.3608]
[1736874851767,0.052,96207.0,96205.0,0.3608]
[1736874851966,0.108,96206.0,96205.0,0.3608]
[1736874852166,0.052,96207.0,96205.0,0.3608]
[1736874853366,0.053,96207.0,96205.0,0.3608]
[1736874855176,0.052005,96196.0,96195.0,0.3608]
[1736874855560,0.052006,96195.0,96194.0,0.052006]
[1736874855768,0.3608,96198.0,96179.0,0.18609519]
[1736874855769,0.052014,96180.0,96179.0,0.18609519]
[1736874855967,0.052016,96176.0,96175.0,0.2502812]
[1736874856173,0.052016,96176.0,96175.0,0.2497612]
[1736874856478,0.052018,96172.0,96171.0,0.2497612]
[1736874857567,0.413818,96172.0,96171.0,0.2497612]
[1736874857768,0.413818,96172.0,96161.0,0.00155991]
[1736874857980,0.052024,96162.0,96161.0,0.00155991]
[1736874859166,0.052024,96162.0,96161.0,0.00655991]
[1736874862169,0.052024,96162.0,96161.0,0.05858391]
[1736874862774,0.052024,96162.0,96161.0,1.55858391]
[1736874862974,0.052024,96162.0,96161.0,1.50655991]
[1736874863671,0.052024,96162.0,96161.0,0.00655991]
[1736874870681,0.052024,96162.0,96161.0,0.005]
[1736874870884,0.052035,96143.0,96142.0,0.052035]
[1736874871691,0.3608,96145.0,96137.0,0.0535973]
[1736874871991,0.052037,96138.0,96137.0,0.0015603]
[1736874873792,0.052037,96138.0,96137.0,0.0075603]
[1736874874186,0.052037,96138.0,96137.0,0.0685973]
[1736874874392,0.052037,96138.0,96137.0,0.0625973]
[1736874874597,0.052037,96138.0,96137.0,0.0595973]
[1736874874892,0.053037,96138.0,96137.0,0.0165603]
[1736874880298,0.053037,96138.0,96137.0,0.0685973]
[1736874880497,0.001,96138.0,96137.0,0.0685973]
[1736874880697,0.053037,96138.0,96137.0,0.0685973]
[1736874881997,0.001,96138.0,96137.0,0.0685973]
[1736874882698,0.053037,96138.0,96137.0,0.0685973]
[1736874883499,0.053037,96138.0,96137.0,0.07745181]
[1736874884095,0.053037,96138.0,96137.0,0.0685973]
[1736874885101,0.053037,96138.0,96137.0,0.0165603]
[1736874886399,0.11335764,96138.0,96137.0,0.015]
[1736874887000,0.12234112,96138.0,96125.0,0.0511]
[1736874887210,0.052044,96124.0,96123.0,0.3608]
[1736874887504,0.052044,96124.0,96123.0,0.42168083]
[1736874888408,0.053044,96124.0,96123.0,0.43068083]
[1736874889994,0.001,96124.0,96123.0,0.43068083]
[1736874890201,0.002,96124.0,96123.0,0.43868083]
[1736874890704,0.002,96124.0,96123.0,1.93868083]
[1736874891301,0.002,96124.0,96123.0,0.43868083]
[1736874891805,0.05204,96132.0,96131.0,0.052041]
[1736874891999,0.05204,96132.0,96131.0,0.412841]
[1736874892200,0.41350001,96154.0,96131.0,0.3608]
[1736874892405,0.41350001,96154.0,96140.0,0.052035]
[1736874892406,0.16683639,96141.0,96140.0,0.052035]
[1736874892702,0.052033,96145.0,96142.0,0.052035]
[1736874892908,0.11480039,96150.0,96142.0,0.052035]
[1736874893207,0.0521028,96143.0,96142.0,0.052035]
[1736874894107,0.052035,96141.0,96140.0,0.36979443]
[1736874894298,0.052035,96141.0,96140.0,0.3608]
[1736874895301,0.053035,96141.0,96140.0,0.3698]
[1736874895505,0.053035,96141.0,96140.0,0.009]
[1736874895708,0.053035,96141.0,96126.0,0.052043]
[1736874895709,0.052042,96128.0,96126.0,0.052043]
[1736874896002,0.053035,96141.0,96124.0,0.3018052]
[1736874896003,0.11480039,96137.0,96124.0,0.3018052]
[1736874896206,0.052044,96125.0,96124.0,0.3018052]
[1736874896600,0.052041,96130.0,96129.0,0.052041]
[1736874897899,0.052044,96125.0,96124.0,0.052044]
[1736874899405,0.053044,96125.0,96124.0,0.059044]
[1736874900109,0.054044,96125.0,96124.0,0.059044]
[1736874900311,0.30000326,96142.0,96141.0,0.052035]
[1736874900509,0.30000326,96142.0,96139.0,0.3608]
[1736874900510,0.052036,96140.0,96139.0,0.3608]
[1736874900711,0.052036,96140.0,96129.0,0.052041]
[1736874900712,0.052043,96130.0,96129.0,0.052041]
[1736874900902,0.052042,96129.0,96127.0,0.052042]
[1736874901098,0.052042,96128.0,96127.0,0.052042]
[1736874901712,0.052044,96125.0,96124.0,0.007]
[1736874902013,0.052037,96138.0,96122.0,0.3608]
[1736874902014,0.052045,96123.0,96122.0,0.3608]
[1736874902510,0.052048,96118.0,96111.0,0.052051]
[1736874902711,0.052048,96118.0,96117.0,0.01046198]
[1736874902910,0.052048,96118.0,96117.0,0.00156055]
[1736874903314,0.11236845,96118.0,96117.0,0.00156055]
[1736874903509,0.11236845,96118.0,96117.0,0.01056055]
[1736874903822,0.11336845,96118.0,96117.0,0.01056055]
[1736874904012,0.11436845,96118.0,96117.0,0.01756055]
[1736874904705,0.19085481,96118.0,96117.0,0.01756055]
[1736874905621,0.11436845,96118.0,96117.0,0.01756055]
[1736874906122,0.12379596,96118.0,96117.0,0.01756055]
[1736874906716,0.06347551,96118.0,96117.0,0.01756055]
[1736874916524,0.052054,96106.0,96105.0,0.052054]
[1736874917724,0.054054,96106.0,96105.0,0.067054]
[1736874917924,0.002,96106.0,96105.0,0.067054]
[1736874918331,6.88e-05,96143.0,96105.0,0.316]
[1736874918531,6.88e-05,96143.0,96134.0,0.412839]
[1736874919027,0.33175434,96141.0,96134.0,0.412839]
[1736874919424,0.27971934,96141.0,96134.0,0.412839]
[1736874919626,0.0521028,96143.0,96142.0,0.052035]
[1736874919824,0.0521028,96143.0,96142.0,0.412835]
[1736874920528,0.0521028,96143.0,96142.0,0.3608]
[1736874921529,0.0531028,96143.0,96142.0,0.3618]
[1736874922728,0.0541028,96143.0,96142.0,0.001]
[1736874922937,0.052044,96125.0,96119.0,0.3608]
[1736874923121,0.0538,96124.0,96105.0,0.2497612]
[1736874923324,0.052052,96112.0,96111.0,0.052051]
[1736874923530,0.052052,96112.0,96111.0,0.412851]
[1736874923727,0.052052,96112.0,96111.0,0.052051]
[1736874923926,0.11480039,96120.0,96105.0,0.2497612]
[1736874924129,0.11480039,96120.0,96119.0,0.008]
[1736874924130,0.16684639,96120.0,96119.0,0.008]
[1736874924322,0.3608,96120.0,96105.0,0.2497612]
[1736874924527,0.3608,96120.0,96102.0,0.3608]
[1736874924528,0.001,96112.0,96102.0,0.3608]
[1736874924833,0.052056,96103.0,96102.0,0.3608]
[1736874925036,0.043056,96103.0,96102.0,0.3608]
[1736874927329,0.043056,96103.0,96101.0,0.00956261]
[1736874927330,0.001,96103.0,96101.0,0.00956261]
[1736874927641,0.052057,96101.0,96097.0,0.05361985]
[1736874927838,0.052057,96101.0,96097.0,0.41441985]
[1736874928132,0.002,96103.0,96102.0,0.052056]
[1736874928330,0.001,96103.0,96102.0,0.052056]
[1736874928636,0.054056,96103.0,96102.0,0.052056]
[1736874929135,0.053056,96103.0,96102.0,0.052056]
[1736874930237,0.052057,96101.0,96100.0,0.152057]
[1736874931640,0.053057,96101.0,96100.0,0.1]
[1736874932035,0.054057,96101.0,96100.0,0.1]
[1736874933339,0.414857,96101.0,96100.0,0.1]
[1736874934635,0.054057,96101.0,96100.0,0.1]
[1736874935156,0.0636147,96101.0,96100.0,0.1]
[1736874935643,0.3733577,96101.0,96070.0,0.2497612]
[1736874935935,0.052073,96071.0,96070.0,0.2497612]
[1736874936343,0.3608,96075.0,96068.0,0.052074]
[1736874936541,0.052074,96069.0,96068.0,0.052074]
[1736874936739,0.052076,96065.0,96064.0,0.2497612]
[1736874937936,0.001,96071.0,96063.0,0.052077]
[1736874937937,0.052077,96064.0,96063.0,0.052077]
[1736874938744,0.052077,96064.0,96058.0,0.3608]
[1736874938942,0.05208,96059.0,96058.0,0.3608]
[1736874940042,0.06168497,96059.0,96058.0,0.3608]
[1736874940638,0.06268497,96059.0,96058.0,0.3608]
[1736874942744,0.06368497,96059.0,96058.0,0.3608]
[1736874943142,0.06468497,96059.0,96058.0,0.3608]
[1736874946049,0.06368497,96059.0,96058.0,0.3608]
[1736874946851,0.052085,96049.0,96048.0,0.3608]
[1736874947253,0.052088,96043.0,96042.0,0.0006]
[1736874947443,0.052091,96037.0,96030.0,0.3608]
[1736874948046,0.052091,96037.0,96031.0,0.3608]
[1736874949548,0.053091,96037.0,96031.0,0.3608]
[1736874949950,0.054091,96037.0,96031.0,0.3608]
[1736874950647,0.053091,96037.0,96036.0,0.0536535]
[1736874951350,0.052091,96037.0,96036.0,0.0536535]
[1736874951552,0.053091,96037.0,96036.0,0.0536535]
[1736874953451,0.053091,96037.0,96036.0,0.0015615]
[1736874954158,0.052067,96083.0,96068.0,0.052075]
[1736874954347,0.3608,96086.0,96068.0,0.3608]
[1736874954543,0.3608,96077.0,96059.0,0.3608]
[1736874954743,0.052078,96062.0,96059.0,0.3608]
[1736874955151,0.052078,96062.0,96059.0,0.41288]
[1736874955343,0.052077,96064.0,96062.0,0.052078]
[1736874956352,0.004,96069.0,96059.0,0.3608]
[1736874956546,0.056075,96069.0,96059.0,0.3608]
[1736874956749,0.004,96069.0,96068.0,0.412875]
[1736874956946,0.052053,96109.0,96071.0,0.052073]
[1736874957251,0.052059,96097.0,96096.0,0.3608]
[1736874957456,0.052059,96097.0,96096.0,0.412859]
[1736874958057,0.052059,96097.0,96096.0,0.3608]
[1736874958254,0.01079085,96100.0,96090.0,0.052062]
[1736874958559,0.052062,96091.0,96090.0,0.052062]
[1736874958753,0.052065,96086.0,96085.0,0.3608]
[1736874959351,0.052065,96086.0,96085.0,0.412865]
[1736874960955,0.052065,96086.0,96085.0,0.415865]
[1736874961156,0.052065,96086.0,96085.0,0.3638]
[1736874961462,0.052065,96086.0,96085.0,0.3618]
[1736874961962,0.052065,96086.0,96085.0,0.3608]
[1736874962162,0.052065,96086.0,96085.0,0.3618]
[1736874962460,0.053065,96086.0,96085.0,0.3618]
[1736874962665,0.053065,96086.0,96085.0,0.3608]
[1736874963458,0.053065,96086.0,96085.0,0.412865]
[1736874963759,0.052062,96092.0,96091.0,0.052061]
[1736874964757,0.052065,96086.0,96085.0,0.3618]
[1736874965461,0.052065,96086.0,96085.0,0.3608]
[1736874965659,0.053065,96086.0,96085.0,0.3608]
[1736874966159,0.053065,96086.0,96085.0,0.412865]
[1736874966358,0.001,96086.0,96085.0,0.3608]
[1736874966565,0.001,96086.0,96085.0,0.412865]
[1736874966959,0.001,96086.0,96085.0,0.42272469]
[1736874967160,0.001,96086.0,96085.0,0.37065969]
[1736874967361,0.001,96086.0,96085.0,0.42272469]
[1736874967866,0.001,96086.0,96085.0,0.42372469]
[1736874968075,0.053065,96086.0,96085.0,0.413865]
[1736874968363,0.053065,96086.0,96085.0,0.3618]
[1736874969166,0.053065,96086.0,96085.0,0.413865]
[1736874971766,0.053065,96086.0,96085.0,0.3618]
[1736874973065,0.053065,96086.0,96085.0,0.413865]
[1736874973766,0.053065,96086.0,96085.0,0.3618]
[1736874979664,0.0494,96091.0,96085.0,0.3618]
[1736874979665,0.05346134,96106.0,96085.0,0.413865]
[1736874979973,0.052059,96097.0,96096.0,0.052059]
[1736874980566,0.13683343,96105.0,96095.0,0.3608]
[1736874980771,0.13683343,96105.0,96104.0,0.412855]
[1736874981568,0.00156134,96106.0,96105.0,0.052055]
[1736874983379,0.24796826,96125.0,96104.0,0.3608]
[1736874983577,0.24796826,96125.0,96124.0,0.412844]
[1736874984372,0.052038,96135.0,96134.0,0.052039]
[1736874985184,0.11480039,96150.0,96133.0,0.3608]
[1736874985482,0.052033,96146.0,96145.0,0.052032]
[1736874985682,0.00156061,96147.0,96142.0,0.3608]
[1736874985683,0.3608,96169.0,96142.0,0.3608]
[1736874985879,0.052023,96163.0,96162.0,0.052022]
[1736874987284,0.056023,96163.0,96162.0,0.052022]
[1736874987477,0.056023,96163.0,96161.0,0.3608]
[1736874987980,0.062023,96163.0,96162.0,0.001]
[1736874988486,0.056023,96163.0,96153.0,0.3608]
[1736874988776,0.052028,96154.0,96152.0,0.052029]
[1736874990468,0.052024,96162.0,96159.0,0.052025]
[1736874990670,0.006,96163.0,96162.0,0.052024]
[1736874990869,0.052021,96167.0,96166.0,0.052021]
[1736874991371,0.0525,96173.0,96161.0,0.3608]
[1736874991578,0.052018,96172.0,96170.0,0.412819]
[1736874991778,0.0525,96173.0,96170.0,0.3608]
[1736874991977,0.0525,96173.0,96172.0,0.052018]
[1736874993580,0.052018,96172.0,96170.0,0.3618]
[1736874994373,0.052018,96172.0,96170.0,0.3608]
[1736874995081,0.056018,96172.0,96170.0,0.3608]
[1736874995673,0.062018,96172.0,96170.0,0.3608]
[1736874995875,0.062018,96172.0,96170.0,0.412819]
[1736874996075,0.01,96172.0,96170.0,0.412819]
[1736874996279,0.0489,96193.0,96186.0,0.052011]
[1736874996580,0.052006,96195.0,96186.0,0.412811]
[1736874996785,0.052006,96195.0,96194.0,0.052006]
[1736874997083,0.052006,96195.0,96194.0,0.412806]
[1736874997880,0.052006,96195.0,96194.0,0.3608]
[1736874998279,0.059006,96195.0,96194.0,0.3618]
[1736874998985,0.059006,96195.0,96194.0,0.413806]
[1736874999386,0.063006,96195.0,96194.0,0.413806]
[1736874999783,0.063006,96195.0,96194.0,0.3618]
[1736875001684,0.063006,96195.0,96194.0,0.413806]
[1736875001885,0.011,96195.0,96194.0,0.413806]
[1736875002382,0.36152,96239.0,96206.0,0.052]
[1736875002582,0.05199,96226.0,96225.0,0.051989]
[1736875002781,0.051987,96231.0,96221.0,0.3608]
[1736875003191,0.0494,96238.0,96221.0,0.3608]
[1736875003489,0.05198,96243.0,96237.0,0.3608]
[1736875003784,0.05353821,96246.0,96245.0,0.051979]
[1736875003984,0.05353821,96246.0,96245.0,0.412779]
[1736875004492,0.05353821,96246.0,96245.0,0.3608]
[1736875005789,0.05353821,96246.0,96245.0,0.412779]
[1736875006181,0.05353821,96246.0,96245.0,0.3608]
[1736875006381,0.05853821,96246.0,96245.0,0.3608]
[1736875006890,0.05853821,96246.0,96245.0,0.3618]
[1736875007092,0.005,96246.0,96245.0,0.3618]
[1736875007281,0.00999043,96254.0,96253.0,0.051975]
[1736875007481,0.051968,96266.0,96265.0,0.051968]
[1736875007678,0.00155869,96276.0,96265.0,0.3608]
[1736875007885,0.00155869,96276.0,96274.0,0.3608]
[1736875008089,0.05352069,96276.0,96275.0,0.051963]
[1736875008283,0.05352069,96276.0,96274.0,0.3608]
[1736875008885,0.00155869,96276.0,96265.0,0.3608]
[1736875009085,0.051968,96266.0,96265.0,0.3608]
[1736875009489,0.3608,96267.0,96244.0,0.3608]
[1736875009698,0.051975,96252.0,96244.0,0.3608]
[1736875009994,0.051976,96251.0,96250.0,0.051976]
[1736875010383,0.11480039,96260.0,96245.0,0.01155176]
[1736875010590,0.051978,96246.0,96245.0,0.00155839]
[1736875013283,0.051972,96258.0,96257.0,0.051972]
[1736875013486,0.0471,96265.0,96254.0,0.3608]
[1736875013686,0.099068,96265.0,96264.0,0.3608]
[1736875013898,0.099068,96265.0,96264.0,0.412769]
[1736875014282,0.099068,96265.0,96264.0,0.3608]
[1736875014891,0.051973,96255.0,96254.0,0.3608]
[1736875016290,0.051977,96250.0,96249.0,0.051977]
[1736875016494,0.051977,96250.0,96249.0,0.412777]
[1736875016689,0.051977,96250.0,96249.0,0.3608]
[1736875016890,0.051977,96250.0,96249.0,0.412777]
[1736875017086,0.001,96255.0,96249.0,0.3608]
[1736875017297,0.001,96255.0,96254.0,0.051974]
[1736875017298,0.052974,96255.0,96254.0,0.051974]
[1736875018194,0.052976,96250.0,96249.0,0.412777]
[1736875018802,0.051978,96246.0,96245.0,0.00155839]
[1736875019889,0.051981,96242.0,96241.0,0.3608]
[1736875020095,0.051989,96229.0,96228.0,0.051987]
[1736875020294,0.051989,96227.0,96226.0,0.3608]
[1736875020494,0.051989,96227.0,96226.0,0.412789]
[1736875020997,0.1712237,96240.0,96217.0,0.3608]
[1736875021197,0.051993,96221.0,96220.0,0.051992]
[1736875021596,0.3608,96234.0,96225.0,0.051989]
[1736875021597,0.051989,96226.0,96225.0,0.051989]
[1736875021899,0.051987,96232.0,96231.0,0.051986]
[1736875022604,0.051987,96232.0,96231.0,0.05185887]
[1736875023107,0.051992,96221.0,96220.0,0.055992]
[1736875024099,0.051992,96221.0,96220.0,0.004]
[1736875024297,0.1712237,96230.0,96217.0,0.3608]
[1736875024298,0.051988,96229.0,96217.0,0.3608]
[1736875024492,0.051993,96219.0,96218.0,0.051993]
[1736875024805,0.01101281,96229.0,96217.0,0.3608]
[1736875025006,0.051993,96218.0,96217.0,0.412793]
[1736875025220,0.3608,96234.0,96220.0,0.002]
[1736875025397,0.3608,96234.0,96225.0,0.051989]
[1736875025398,0.05199,96226.0,96225.0,0.051989]
[1736875027201,0.0461,96241.0,96235.0,0.051984]
[1736875027202,0.051983,96238.0,96235.0,0.051984]
[1736875027394,0.051984,96236.0,96235.0,0.051984]
[1736875028303,0.051981,96241.0,96240.0,0.051982]
[1736875028899,0.051981,96241.0,96240.0,1.551982]
[1736875029103,0.051981,96241.0,96240.0,0.051982]
[1736875031304,0.051976,96251.0,96250.0,0.051976]
[1736875032506,0.051973,96257.0,96256.0,0.051972]
[1736875035206,0.053973,96257.0,96256.0,0.051972]
[1736875036807,0.002,96257.0,96256.0,0.051972]
[1736875037410,0.053972,96257.0,96256.0,0.051972]
[1736875038003,0.051975,96253.0,96252.0,0.3608]
[1736875039207,0.052975,96253.0,96252.0,0.412775]
[1736875039914,0.001,96253.0,96252.0,0.412775]
[1736875045005,0.051966,96270.0,96252.0,1.912775]
[1736875045216,0.051966,96270.0,96269.0,0.051966]
[1736875045510,0.0475,96276.0,96264.0,0.3608]
[1736875045809,0.051963,96275.0,96274.0,0.051963]
[1736875047305,0.051963,96275.0,96274.0,0.052963]
[1736875048016,0.051963,96275.0,96274.0,0.001]
[1736875048322,0.051972,96263.0,96262.0,0.05197]
[1736875050720,0.054972,96263.0,96262.0,0.05197]
[1736875051826,0.11520615,96263.0,96262.0,0.05197]
[1736875052829,0.06323415,96263.0,96262.0,0.05197]
[1736875053012,0.11520315,96263.0,96262.0,0.05197]
[1736875053217,0.06323415,96263.0,96261.0,0.3608]
[1736875053423,0.09957,96262.0,96261.0,0.3608]
[1736875054128,0.15980415,96262.0,96261.0,0.3608]
[1736875054321,0.15643415,96262.0,96253.0,0.3608]
[1736875054627,0.051974,96254.0,96253.0,0.412775]
[1736875055231,0.051973,96259.0,96258.0,0.05197]
[1736875055528,0.051974,96254.0,96253.0,0.412774]
[1736875056023,0.052974,96254.0,96253.0,0.412774]
[1736875056524,0.11320815,96254.0,96253.0,0.412774]
[1736875056827,0.11320815,96254.0,96253.0,0.3608]
[1736875057426,0.11320815,96254.0,96253.0,0.412775]
[1736875057922,0.052974,96254.0,96253.0,0.412775]
[1736875060625,0.052974,96254.0,96253.0,0.3608]
[1736875062517,0.05938225,96254.0,96253.0,0.3608]
[1736875063627,0.052974,96254.0,96253.0,0.3608]
[1736875064819,0.18958713,96254.0,96253.0,0.412775]
[1736875065527,0.13761313,96254.0,96253.0,0.412775]
[1736875066130,0.13761313,96254.0,96253.0,1.912775]
[1736875067030,0.06124203,96254.0,96253.0,1.912775]
[1736875067735,0.001,96254.0,96253.0,1.91895841]
[1736875068724,0.06124203,96254.0,96253.0,1.91895841]
[1736875068929,0.11321603,96254.0,96253.0,0.3608]
[1736875069135,0.06124203,96254.0,96233.0,0.4058]
[1736875069435,0.051983,96237.0,96223.0,0.18615501]
[1736875069631,0.05199,96224.0,96223.0,0.18615501]
[1736875069826,0.1451,96236.0,96223.0,0.54695501]
[1736875069827,0.0495,96236.0,96223.0,0.54695501]
[1736875070032,0.051976,96252.0,96235.0,0.412784]
[1736875070333,0.051976,96252.0,96251.0,0.051976]
[1736875070533,0.051976,96252.0,96251.0,0.412776]
[1736875071131,0.11221803,96252.0,96251.0,0.412776]
[1736875072033,0.11221803,96252.0,96251.0,0.3608]
[1736875072231,0.18958846,96252.0,96251.0,0.3608]
[1736875072426,0.18958846,96252.0,96244.0,0.3608]
[1736875072627,0.051981,96245.0,96244.0,0.412779]
[1736875073024,0.051981,96245.0,96244.0,0.3608]
[1736875073230,0.051983,96240.0,96239.0,0.051982]
[1736875073430,0.051985,96233.0,96230.0,0.00635126]
[1736875073734,0.051986,96232.0,96227.0,0.3608]
[1736875073931,0.099886,96232.0,96227.0,0.3608]
[1736875074731,0.099886,96232.0,96227.0,0.412788]
[1736875074942,0.099886,96232.0,96231.0,0.00455868]
[1736875075536,0.099886,96232.0,96231.0,0.00155868]
[1736875075743,0.099886,96232.0,96231.0,0.00355868]
[1736875076536,0.099886,96232.0,96231.0,0.00955868]
[1736875076937,0.148286,96232.0,96217.0,0.3608]
[1736875077146,0.148286,96232.0,96200.0,0.2497612]
[1736875077147,0.051995,96216.0,96215.0,0.3608]
[1736875078037,0.051995,96216.0,96215.0,0.412795]
[1736875078237,0.051995,96216.0,96215.0,0.419795]
[1736875078838,0.051995,96216.0,96215.0,0.060995]
[1736875079944,0.051995,96216.0,96215.0,0.007]
[1736875080343,0.051995,96216.0,96203.0,1.50052]
[1736875080344,0.051999,96207.0,96206.0,0.3608]
[1736875081246,0.051999,96207.0,96206.0,0.4128]
[1736875081432,0.051999,96207.0,96206.0,0.3608]
[1736875081847,0.051999,96207.0,96194.0,0.3608]
[1736875081848,0.052002,96203.0,96194.0,0.3608]
[1736875082145,0.052002,96203.0,96167.0,0.49835651]
[1736875082146,0.3618,96203.0,96178.0,0.0467]
[1736875082334,0.3618,96203.0,96175.0,0.3608]
[1736875082335,0.11414121,96188.0,96175.0,0.3608]
[1736875082647,0.052015,96179.0,96175.0,0.3608]
[1736875082846,0.11414121,96190.0,96175.0,0.3608]
[1736875083052,0.05356385,96199.0,96197.0,0.052005]
[1736875084341,0.052007,96193.0,96191.0,0.052008]
[1736875084534,0.05356385,96199.0,96197.0,0.052005]
[1736875084741,0.05356385,96199.0,96198.0,0.3608]
[1736875085045,0.00155985,96199.0,96198.0,0.3608]
[1736875085263,0.11414121,96210.0,96209.0,0.051998]
[1736875085439,0.051997,96212.0,96210.0,0.051997]
[1736875086836,0.051997,96212.0,96211.0,0.051997]
[1736875087043,0.052997,96212.0,96211.0,0.051997]
[1736875087443,0.051997,96212.0,96211.0,0.051997]
[1736875087744,0.054997,96212.0,96211.0,0.051997]
[1736875088045,0.051998,96210.0,96209.0,0.3608]